[Event "Titled Tuesday Blitz July 20 2021"]
[White "Roman, Rodrigo"]
[Black "Makhnev, Denis"]
[WhiteFideId "3701220"]
[BlackFideId "13707647"]
[WhiteElo "2043"]
[BlackElo "2537"]
[Result "1/2-1/2"]
[Round "03"]
[TimeControl "180+1"]
[Date "2021.07.21"]
[WhiteClock "0:00:18"]
[BlackClock "0:00:22"]

1. c4 {[%clk 0:03:00]}  e5 {[%clk 0:03:00]} 2. Nc3 {[%clk 0:03:00]}  Nf6 {[%clk 0:02:59]} 3. Nf3 {[%clk 0:03:00]}  Nc6 {[%clk 0:03:00]} 4. e3 {[%clk 0:02:58]}  Bb4 {[%clk 0:03:00]} 5. Qc2 {[%clk 0:02:54]}  Bxc3 {[%clk 0:02:59]} 6. Qxc3 {[%clk 0:02:53]}  Qe7 {[%clk 0:02:59]} 7. a3 {[%clk 0:02:49]}  O-O {[%clk 0:02:57]} 8. b4 {[%clk 0:02:46]}  d5 {[%clk 0:02:54]} 9. cxd5 {[%clk 0:02:47]}  Nxd5 {[%clk 0:02:54]} 10. Qc2 {[%clk 0:02:48]}  a6 {[%clk 0:02:50]} 11. Bb2 {[%clk 0:02:44]}  Bg4 {[%clk 0:02:44]} 12. h3 {[%clk 0:02:41]}  Bh5 {[%clk 0:02:43]} 13. Bd3 {[%clk 0:02:35]}  Bg6 {[%clk 0:02:43]} 14. Bxg6 {[%clk 0:02:33]}  hxg6 {[%clk 0:02:43]} 15. d3 {[%clk 0:02:33]}  Rad8 {[%clk 0:02:42]} 16. O-O {[%clk 0:02:29]}  Rd7 {[%clk 0:02:40]} 17. Rfd1 {[%clk 0:02:29]}  Rfd8 {[%clk 0:02:40]} 18. Nd2 {[%clk 0:02:28]}  Ndxb4 {[%clk 0:02:11]} 19. axb4 {[%clk 0:02:25]}  Nxb4 {[%clk 0:02:12]} 20. Qb3 {[%clk 0:02:24]}  Rxd3 {[%clk 0:02:12]} 21. Bc3 {[%clk 0:02:18]}  Nd5 {[%clk 0:02:11]} 22. Ne4 {[%clk 0:02:15]}  Nxc3 {[%clk 0:02:08]} 23. Nxc3 {[%clk 0:02:12]}  Qc5 {[%clk 0:02:07]} 24. Ne4 {[%clk 0:02:10]}  Rxd1+ {[%clk 0:01:50]} 25. Rxd1 {[%clk 0:02:06]}  Rxd1+ {[%clk 0:01:50]} 26. Qxd1 {[%clk 0:02:06]}  Qe7 {[%clk 0:01:51]} 27. Qd5 {[%clk 0:01:57]}  c6 {[%clk 0:01:44]} 28. Qa5 {[%clk 0:01:56]}  f5 {[%clk 0:01:43]} 29. Nc5 {[%clk 0:01:55]}  b5 {[%clk 0:01:12]} 30. Nxa6 {[%clk 0:01:40]}  Kh7 {[%clk 0:01:11]} 31. Qb6 {[%clk 0:01:37]}  Qd6 {[%clk 0:01:10]} 32. Nb8 {[%clk 0:01:32]}  b4 {[%clk 0:01:07]} 33. Nxc6 {[%clk 0:01:31]}  b3 {[%clk 0:01:07]} 34. Qxb3 {[%clk 0:01:24]}  Qxc6 {[%clk 0:01:07]} 35. Qb4 {[%clk 0:01:18]}  g5 {[%clk 0:01:04]} 36. Qa5 {[%clk 0:01:16]}  Qe6 {[%clk 0:01:02]} 37. Qd8 {[%clk 0:01:13]}  Kg6 {[%clk 0:01:02]} 38. h4 {[%clk 0:01:09]}  g4 {[%clk 0:00:54]} 39. Qg5+ {[%clk 0:01:07]}  Kh7 {[%clk 0:00:54]} 40. g3 {[%clk 0:00:58]}  Qg6 {[%clk 0:00:52]} 41. Qe7 {[%clk 0:00:58]}  e4 {[%clk 0:00:47]} 42. Qe5 {[%clk 0:00:56]}  Qf7 {[%clk 0:00:45]} 43. Qf4 {[%clk 0:00:53]}  Qf6 {[%clk 0:00:45]} 44. Qc7 {[%clk 0:00:51]}  Kg6 {[%clk 0:00:45]} 45. Qd7 {[%clk 0:00:49]}  Qe5 {[%clk 0:00:41]} 46. Qc6+ {[%clk 0:00:48]}  Kf7 {[%clk 0:00:42]} 47. Qd7+ {[%clk 0:00:48]}  Kf6 {[%clk 0:00:42]} 48. Qd8+ {[%clk 0:00:48]}  Qe7 {[%clk 0:00:42]} 49. Qd4+ {[%clk 0:00:47]}  Ke6 {[%clk 0:00:43]} 50. Qc4+ {[%clk 0:00:44]}  Kf6 {[%clk 0:00:43]} 51. Qd4+ {[%clk 0:00:44]}  Kg6 {[%clk 0:00:44]} 52. Qb6+ {[%clk 0:00:44]}  Kf7 {[%clk 0:00:44]} 53. Qd4 {[%clk 0:00:43]}  Qe6 {[%clk 0:00:44]} 54. Qa7+ {[%clk 0:00:43]}  Kg6 {[%clk 0:00:44]} 55. Qd4 {[%clk 0:00:42]}  Qc6 {[%clk 0:00:43]} 56. Qd8 {[%clk 0:00:40]}  Kf7 {[%clk 0:00:42]} 57. Qd4 {[%clk 0:00:37]}  Qf6 {[%clk 0:00:37]} 58. Qd7+ {[%clk 0:00:36]}  Kg6 {[%clk 0:00:37]} 59. Qe8+ {[%clk 0:00:36]}  Kh7 {[%clk 0:00:37]} 60. Qh5+ {[%clk 0:00:36]}  Kg8 {[%clk 0:00:38]} 61. Qe8+ {[%clk 0:00:36]}  Qf8 {[%clk 0:00:39]} 62. Qe6+ {[%clk 0:00:36]}  Qf7 {[%clk 0:00:40]} 63. Qc8+ {[%clk 0:00:36]}  Kh7 {[%clk 0:00:40]} 64. Qc5 {[%clk 0:00:35]}  Qf6 {[%clk 0:00:38]} 65. Qc8 {[%clk 0:00:33]}  g5 {[%clk 0:00:38]} 66. Qd7+ {[%clk 0:00:29]}  Kh6 {[%clk 0:00:38]} 67. hxg5+ {[%clk 0:00:29]}  Kxg5 {[%clk 0:00:39]} 68. Qe8 {[%clk 0:00:28]}  Kh6 {[%clk 0:00:33]} 69. Kg2 {[%clk 0:00:26]}  Kg7 {[%clk 0:00:33]} 70. Kf1 {[%clk 0:00:24]}  Qa1+ {[%clk 0:00:30]} 71. Kg2 {[%clk 0:00:24]}  Qf6 {[%clk 0:00:30]} 72. Kf1 {[%clk 0:00:24]}  Qd6 {[%clk 0:00:30]} 73. Kg2 {[%clk 0:00:22]}  Kf6 {[%clk 0:00:30]} 74. Qh8+ {[%clk 0:00:21]}  Ke6 {[%clk 0:00:31]} 75. Qe8+ {[%clk 0:00:19]}  Kd5 {[%clk 0:00:29]} 76. Qf7+ {[%clk 0:00:19]}  Qe6 {[%clk 0:00:30]} 77. Qb7+ {[%clk 0:00:20]}  Kc4 {[%clk 0:00:30]} 78. Qb2 {[%clk 0:00:20]}  Kd3 {[%clk 0:00:28]} 79. Kf1 {[%clk 0:00:19]}  Qc4 {[%clk 0:00:26]} 80. Kg2 {[%clk 0:00:19]}  Qd5 {[%clk 0:00:21]} 81. Qa3+ {[%clk 0:00:19]}  Kc2 {[%clk 0:00:21]} 82. Qa4+ {[%clk 0:00:18]}  Kc3 {[%clk 0:00:22]} 83. Qa3+ {[%clk 0:00:18]}  Kc2 {[%clk 0:00:22]} 84. Qa4+ {[%clk 0:00:18]}  Kc1 {[%clk 0:00:22]} 85. Qa3+ {[%clk 0:00:18]}  Kc2 {[%clk 0:00:22]} 1/2-1/2


[Site "https://www.chess.com"]

[Event "Titled Tuesday Blitz July 20 2021"]
[White "Rozhkov, Viacheslav"]
[Black "Turgut, Aydin"]
[WhiteFideId "4181484"]
[BlackFideId "2078791"]
[WhiteElo "2324"]
[BlackElo "2138"]
[Result "1-0"]
[Round "03"]
[TimeControl "180+1"]
[Date "2021.07.21"]
[WhiteClock "0:00:23"]
[BlackClock "0:00:02"]

1. e4 {[%clk 0:03:00]}  e5 {[%clk 0:03:00]} 2. Nf3 {[%clk 0:03:00]}  Nc6 {[%clk 0:03:00]} 3. d4 {[%clk 0:03:01]}  exd4 {[%clk 0:03:00]} 4. Bc4 {[%clk 0:03:01]}  Nf6 {[%clk 0:02:59]} 5. e5 {[%clk 0:03:01]}  d5 {[%clk 0:02:52]} 6. Bb5 {[%clk 0:03:01]}  Ne4 {[%clk 0:02:52]} 7. Nxd4 {[%clk 0:03:00]}  Bd7 {[%clk 0:02:52]} 8. Bxc6 {[%clk 0:03:00]}  bxc6 {[%clk 0:02:53]} 9. O-O {[%clk 0:03:00]}  Bc5 {[%clk 0:02:52]} 10. f3 {[%clk 0:03:00]}  Ng5 {[%clk 0:02:51]} 11. f4 {[%clk 0:03:00]}  Ne4 {[%clk 0:02:42]} 12. Be3 {[%clk 0:03:00]}  Bb6 {[%clk 0:02:42]} 13. Nd2 {[%clk 0:02:59]}  Nxd2 {[%clk 0:02:37]} 14. Qxd2 {[%clk 0:02:58]}  c5 {[%clk 0:02:37]} 15. Nf3 {[%clk 0:02:59]}  d4 {[%clk 0:02:31]} 16. Bf2 {[%clk 0:02:58]}  Bc6 {[%clk 0:02:27]} 17. c4 {[%clk 0:02:55]}  Bxf3 {[%clk 0:02:24]} 18. gxf3 {[%clk 0:02:54]}  Qd7 {[%clk 0:02:24]} 19. Bh4 {[%clk 0:02:53]}  O-O {[%clk 0:02:12]} 20. Qd3 {[%clk 0:02:53]}  Qh3 {[%clk 0:02:10]} 21. Bg3 {[%clk 0:02:38]}  h5 {[%clk 0:02:03]} 22. f5 {[%clk 0:02:34]}  Rae8 {[%clk 0:01:58]} 23. Kh1 {[%clk 0:02:25]}  c6 {[%clk 0:01:49]} 24. Rg1 {[%clk 0:02:23]}  Bc7 {[%clk 0:01:44]} 25. e6 {[%clk 0:02:23]}  Bd8 {[%clk 0:01:15]} 26. Bd6 {[%clk 0:02:14]}  fxe6 {[%clk 0:00:59]} 27. Bxf8 {[%clk 0:02:12]}  Kxf8 {[%clk 0:00:48]} 28. fxe6 {[%clk 0:01:43]}  Bc7 {[%clk 0:00:48]} 29. Rg2 {[%clk 0:01:36]}  Rxe6 {[%clk 0:00:47]} 30. Qh7 {[%clk 0:01:29]}  Be5 {[%clk 0:00:40]} 31. Re1 {[%clk 0:01:28]}  Bf6 {[%clk 0:00:17]} 32. Qh8+ {[%clk 0:01:15]}  Kf7 {[%clk 0:00:08]} 33. Rxe6 {[%clk 0:01:13]}  Qxe6 {[%clk 0:00:05]} 34. Qxh5+ {[%clk 0:01:12]}  Kg8 {[%clk 0:00:05]} 35. Qg4 {[%clk 0:01:02]}  Qxc4 {[%clk 0:00:02]} 36. Qc8+ {[%clk 0:00:59]}  Kf7 {[%clk 0:00:02]} 37. Qd7+ {[%clk 0:00:55]}  Kf8 {[%clk 0:00:03]} 38. Qd6+ {[%clk 0:00:53]}  Kf7 {[%clk 0:00:02]} 39. Qxc6 {[%clk 0:00:52]}  Qf1+ {[%clk 0:00:02]} 40. Rg1 {[%clk 0:00:52]}  Qc4 {[%clk 0:00:02]} 41. Qd7+ {[%clk 0:00:51]}  Kg8 {[%clk 0:00:02]} 42. Qe8+ {[%clk 0:00:51]}  Kh7 {[%clk 0:00:03]} 43. Qh5+ {[%clk 0:00:51]}  Kg8 {[%clk 0:00:03]} 44. Qf5 {[%clk 0:00:50]}  Qf7 {[%clk 0:00:03]} 45. Qxc5 {[%clk 0:00:49]}  Qe6 {[%clk 0:00:02]} 46. b3 {[%clk 0:00:47]}  Qe3 {[%clk 0:00:02]} 47. Qd5+ {[%clk 0:00:46]}  Kf8 {[%clk 0:00:02]} 48. Qe4 {[%clk 0:00:46]}  Qf2 {[%clk 0:00:02]} 49. Qa8+ {[%clk 0:00:34]}  Kf7 {[%clk 0:00:03]} 50. Qxa7+ {[%clk 0:00:34]}  Kg8 {[%clk 0:00:03]} 51. Qa8+ {[%clk 0:00:33]}  Kh7 {[%clk 0:00:04]} 52. Qe4+ {[%clk 0:00:34]}  Kh8 {[%clk 0:00:04]} 53. a4 {[%clk 0:00:32]}  Qd2 {[%clk 0:00:04]} 54. Qe8+ {[%clk 0:00:31]}  Kh7 {[%clk 0:00:04]} 55. Qh5+ {[%clk 0:00:31]}  Kg8 {[%clk 0:00:04]} 56. Qd5+ {[%clk 0:00:32]}  Kh7 {[%clk 0:00:04]} 57. Qe4+ {[%clk 0:00:32]}  Kg8 {[%clk 0:00:05]} 58. b4 {[%clk 0:00:32]}  Qxb4 {[%clk 0:00:05]} 59. Qe6+ {[%clk 0:00:33]}  Kh7 {[%clk 0:00:05]} 60. Qf5+ {[%clk 0:00:33]}  Kh8 {[%clk 0:00:05]} 61. Qh5+ {[%clk 0:00:33]}  Kg8 {[%clk 0:00:06]} 62. Qg6 {[%clk 0:00:31]}  Kf8 {[%clk 0:00:05]} 63. Rc1 {[%clk 0:00:29]}  Qb7 {[%clk 0:00:05]} 64. Qf5 {[%clk 0:00:28]}  Kf7 {[%clk 0:00:03]} 65. a5 {[%clk 0:00:27]}  Qa7 {[%clk 0:00:01]} 66. Qd5+ {[%clk 0:00:26]}  Kg6 {[%clk 0:00:02]} 67. Rg1+ {[%clk 0:00:25]}  Kh7 {[%clk 0:00:02]} 68. Qh5+ {[%clk 0:00:25]}  Kg8 {[%clk 0:00:03]} 69. Qe8+ {[%clk 0:00:26]}  Kh7 {[%clk 0:00:03]} 70. Qe4+ {[%clk 0:00:25]}  Kg8 {[%clk 0:00:03]} 71. Qf5 {[%clk 0:00:26]}  Qb7 {[%clk 0:00:03]} 72. Qxf6 {[%clk 0:00:25]}  d3 {[%clk 0:00:01]} 73. Qe6+ {[%clk 0:00:23]}  Kh8 {[%clk 0:00:01]} 74. Qe8+ {[%clk 0:00:22]}  Kh7 {[%clk 0:00:02]} 75. Qe4+ {[%clk 0:00:23]} 1-0


[Site "https://www.chess.com"]

[Event "Titled Tuesday Blitz July 20 2021"]
[White "Samsonkin, Artiom"]
[Black "Lagunow, Raphael"]
[WhiteFideId "13503111"]
[BlackFideId "24652644"]
[WhiteElo "2513"]
[BlackElo "2400"]
[Result "1-0"]
[Round "03"]
[TimeControl "180+1"]
[Date "2021.07.21"]
[WhiteClock "0:00:14"]
[BlackClock "0:00:07"]

1. e4 {[%clk 0:03:00]}  c5 {[%clk 0:02:59]} 2. Nf3 {[%clk 0:03:00]}  Nc6 {[%clk 0:02:58]} 3. Bb5 {[%clk 0:02:59]}  g6 {[%clk 0:02:57]} 4. c3 {[%clk 0:02:59]}  Bg7 {[%clk 0:02:56]} 5. d4 {[%clk 0:02:58]}  cxd4 {[%clk 0:02:45]} 6. cxd4 {[%clk 0:02:59]}  Nf6 {[%clk 0:02:40]} 7. Nc3 {[%clk 0:02:59]}  O-O {[%clk 0:02:35]} 8. O-O {[%clk 0:02:55]}  d6 {[%clk 0:02:21]} 9. h3 {[%clk 0:02:48]}  a6 {[%clk 0:02:10]} 10. Bxc6 {[%clk 0:02:42]}  bxc6 {[%clk 0:02:10]} 11. Be3 {[%clk 0:02:42]}  Rb8 {[%clk 0:02:06]} 12. b3 {[%clk 0:02:34]}  Bb7 {[%clk 0:01:48]} 13. Qd2 {[%clk 0:02:14]}  c5 {[%clk 0:01:44]} 14. d5 {[%clk 0:02:11]}  Re8 {[%clk 0:01:31]} 15. Rad1 {[%clk 0:02:04]}  Nd7 {[%clk 0:01:25]} 16. Bh6 {[%clk 0:02:01]}  Bh8 {[%clk 0:01:24]} 17. Rfe1 {[%clk 0:01:39]}  Qa5 {[%clk 0:01:23]} 18. Rc1 {[%clk 0:01:22]}  Rbc8 {[%clk 0:01:08]} 19. Na4 {[%clk 0:01:00]}  Qxd2 {[%clk 0:01:07]} 20. Nxd2 {[%clk 0:01:01]}  Ne5 {[%clk 0:00:50]} 21. Re3 {[%clk 0:00:52]}  f5 {[%clk 0:00:50]} 22. exf5 {[%clk 0:00:47]}  gxf5 {[%clk 0:00:41]} 23. Rce1 {[%clk 0:00:35]}  Bxd5 {[%clk 0:00:36]} 24. Nb6 {[%clk 0:00:35]}  Bb7 {[%clk 0:00:25]} 25. Nxc8 {[%clk 0:00:35]}  Rxc8 {[%clk 0:00:26]} 26. f4 {[%clk 0:00:27]}  Ng6 {[%clk 0:00:25]} 27. Bg5 {[%clk 0:00:26]}  e5 {[%clk 0:00:25]} 28. Nc4 {[%clk 0:00:26]}  Rc6 {[%clk 0:00:16]} 29. fxe5 {[%clk 0:00:20]}  dxe5 {[%clk 0:00:16]} 30. Rd1 {[%clk 0:00:20]}  Bc8 {[%clk 0:00:09]} 31. Rd8+ {[%clk 0:00:18]}  Kf7 {[%clk 0:00:10]} 32. Rxc8 {[%clk 0:00:16]}  Rxc8 {[%clk 0:00:10]} 33. Nd6+ {[%clk 0:00:17]}  Ke6 {[%clk 0:00:10]} 34. Nxc8 {[%clk 0:00:18]}  f4 {[%clk 0:00:11]} 35. Bxf4 {[%clk 0:00:14]}  Nxf4 {[%clk 0:00:10]} 36. Nb6 {[%clk 0:00:15]}  Kf5 {[%clk 0:00:08]} 37. Nc4 {[%clk 0:00:14]}  e4 {[%clk 0:00:09]} 38. Nd6+ {[%clk 0:00:14]}  Ke6 {[%clk 0:00:08]} 39. Rxe4+ {[%clk 0:00:14]}  Kxd6 {[%clk 0:00:08]} 40. Rxf4 {[%clk 0:00:15]}  Be5 {[%clk 0:00:08]} 41. Rh4 {[%clk 0:00:15]}  Bd4+ {[%clk 0:00:07]} 42. Kf1 {[%clk 0:00:14]} 1-0


[Site "https://www.chess.com"]

[Event "Titled Tuesday Blitz July 20 2021"]
[White "Shtivelband, Richard"]
[Black "Ozen, Bahadir"]
[WhiteFideId "2017342"]
[BlackFideId "6337058"]
[WhiteElo "2418"]
[BlackElo "2503"]
[Result "0-1"]
[Round "03"]
[TimeControl "180+1"]
[Date "2021.07.21"]
[WhiteClock "0:00:42"]
[BlackClock "0:00:34"]

1. e4 {[%clk 0:03:00]}  c6 {[%clk 0:02:59]} 2. d4 {[%clk 0:03:00]}  d5 {[%clk 0:02:59]} 3. e5 {[%clk 0:03:00]}  Bf5 {[%clk 0:02:59]} 4. Nf3 {[%clk 0:03:00]}  e6 {[%clk 0:02:59]} 5. Be2 {[%clk 0:03:00]}  Ne7 {[%clk 0:02:59]} 6. O-O {[%clk 0:03:00]}  Nc8 {[%clk 0:02:59]} 7. a4 {[%clk 0:02:59]}  Be7 {[%clk 0:02:55]} 8. Nbd2 {[%clk 0:02:58]}  O-O {[%clk 0:02:54]} 9. Nb3 {[%clk 0:02:57]}  Nd7 {[%clk 0:02:35]} 10. Be3 {[%clk 0:02:54]}  Qc7 {[%clk 0:02:28]} 11. a5 {[%clk 0:02:52]}  a6 {[%clk 0:02:23]} 12. c4 {[%clk 0:02:50]}  dxc4 {[%clk 0:02:23]} 13. Bxc4 {[%clk 0:02:50]}  Na7 {[%clk 0:02:24]} 14. Rc1 {[%clk 0:02:45]}  Qd8 {[%clk 0:02:19]} 15. h3 {[%clk 0:02:33]}  Nb5 {[%clk 0:02:18]} 16. Qd2 {[%clk 0:02:28]}  h6 {[%clk 0:02:16]} 17. Rfd1 {[%clk 0:02:27]}  Re8 {[%clk 0:02:16]} 18. Bd3 {[%clk 0:02:20]}  Bxd3 {[%clk 0:02:15]} 19. Qxd3 {[%clk 0:02:21]}  Nf8 {[%clk 0:02:03]} 20. Nc5 {[%clk 0:02:06]}  Bxc5 {[%clk 0:02:03]} 21. Rxc5 {[%clk 0:02:07]}  Qxa5 {[%clk 0:02:02]} 22. Qe4 {[%clk 0:01:51]}  Ng6 {[%clk 0:01:49]} 23. Qg4 {[%clk 0:01:45]}  Kh8 {[%clk 0:01:48]} 24. h4 {[%clk 0:01:45]}  Qc7 {[%clk 0:01:24]} 25. h5 {[%clk 0:01:41]}  Ne7 {[%clk 0:01:24]} 26. Qe4 {[%clk 0:01:38]}  Qd7 {[%clk 0:01:11]} 27. g4 {[%clk 0:01:36]}  Rg8 {[%clk 0:01:09]} 28. Kh2 {[%clk 0:01:23]}  b6 {[%clk 0:01:06]} 29. Rcc1 {[%clk 0:01:19]}  Raf8 {[%clk 0:01:03]} 30. Rg1 {[%clk 0:01:17]}  Qd5 {[%clk 0:00:59]} 31. Qf4 {[%clk 0:01:05]}  f6 {[%clk 0:00:58]} 32. Qg3 {[%clk 0:00:53]}  Kh7 {[%clk 0:00:45]} 33. Nh4 {[%clk 0:00:43]}  Nxd4 {[%clk 0:00:35]} 34. Bxd4 {[%clk 0:00:42]}  Qxd4 {[%clk 0:00:35]} 35. Rxc6 {[%clk 0:00:42]}  Nxc6 {[%clk 0:00:34]} 0-1


[Site "https://www.chess.com"]

[Event "Titled Tuesday Blitz July 20 2021"]
[White "Stearman, Josiah"]
[Black "DominikPedzich"]
[WhiteFideId "2062496"]
[WhiteElo "2402"]
[BlackElo "2433"]
[Result "1-0"]
[Round "03"]
[TimeControl "180+1"]
[Date "2021.07.21"]
[WhiteClock "0:01:02"]
[BlackClock "0:00:39"]

1. e4 {[%clk 0:03:00]}  c5 {[%clk 0:02:59]} 2. Nc3 {[%clk 0:03:00]}  Nc6 {[%clk 0:02:59]} 3. g3 {[%clk 0:03:01]}  g6 {[%clk 0:02:58]} 4. Bg2 {[%clk 0:03:02]}  Bg7 {[%clk 0:02:58]} 5. d3 {[%clk 0:03:03]}  e6 {[%clk 0:02:58]} 6. Be3 {[%clk 0:03:04]}  d6 {[%clk 0:02:55]} 7. Qd2 {[%clk 0:03:04]}  Nd4 {[%clk 0:02:52]} 8. Nd1 {[%clk 0:03:04]}  e5 {[%clk 0:02:49]} 9. c3 {[%clk 0:03:04]}  Nc6 {[%clk 0:02:49]} 10. Ne2 {[%clk 0:03:05]}  Nge7 {[%clk 0:02:33]} 11. Bh6 {[%clk 0:03:03]}  O-O {[%clk 0:02:28]} 12. h4 {[%clk 0:03:04]}  f6 {[%clk 0:02:20]} 13. Bxg7 {[%clk 0:03:03]}  Kxg7 {[%clk 0:02:20]} 14. h5 {[%clk 0:03:04]}  g5 {[%clk 0:02:19]} 15. h6+ {[%clk 0:03:05]}  Kh8 {[%clk 0:02:15]} 16. f4 {[%clk 0:03:05]}  exf4 {[%clk 0:02:09]} 17. gxf4 {[%clk 0:03:05]}  Ng6 {[%clk 0:02:08]} 18. Nf2 {[%clk 0:02:59]}  gxf4 {[%clk 0:01:50]} 19. Nxf4 {[%clk 0:03:00]}  Nce5 {[%clk 0:01:49]} 20. O-O-O {[%clk 0:02:56]}  Nxf4 {[%clk 0:01:38]} 21. Qxf4 {[%clk 0:02:50]}  f5 {[%clk 0:01:38]} 22. exf5 {[%clk 0:02:12]}  Bxf5 {[%clk 0:01:37]} 23. Qe3 {[%clk 0:02:11]}  Rg8 {[%clk 0:01:23]} 24. Be4 {[%clk 0:02:01]}  Qg5 {[%clk 0:01:19]} 25. Qxg5 {[%clk 0:01:51]}  Rxg5 {[%clk 0:01:19]} 26. Rdg1 {[%clk 0:01:49]}  Rag8 {[%clk 0:01:14]} 27. Rxg5 {[%clk 0:01:36]}  Rxg5 {[%clk 0:01:14]} 28. Kd2 {[%clk 0:01:29]}  Nf7 {[%clk 0:01:10]} 29. Bxf5 {[%clk 0:01:20]}  Rxf5 {[%clk 0:01:10]} 30. Ne4 {[%clk 0:01:21]}  b6 {[%clk 0:01:06]} 31. c4 {[%clk 0:01:12]}  Kg8 {[%clk 0:01:04]} 32. Rg1+ {[%clk 0:01:09]}  Kf8 {[%clk 0:01:00]} 33. Rg7 {[%clk 0:01:08]}  Rh5 {[%clk 0:00:54]} 34. Rxh7 {[%clk 0:01:04]}  Ke7 {[%clk 0:00:54]} 35. Nxd6 {[%clk 0:00:58]}  Kxd6 {[%clk 0:00:53]} 36. Rxf7 {[%clk 0:00:58]}  Rxh6 {[%clk 0:00:52]} 37. Rxa7 {[%clk 0:00:58]}  Rh2+ {[%clk 0:00:52]} 38. Kc3 {[%clk 0:00:59]}  Rh3 {[%clk 0:00:52]} 39. a3 {[%clk 0:00:59]}  Kc6 {[%clk 0:00:51]} 40. b4 {[%clk 0:00:59]}  cxb4+ {[%clk 0:00:52]} 41. axb4 {[%clk 0:01:00]}  Rh2 {[%clk 0:00:50]} 42. Rg7 {[%clk 0:01:00]}  Rh3 {[%clk 0:00:49]} 43. Rg6+ {[%clk 0:01:00]}  Kc7 {[%clk 0:00:48]} 44. c5 {[%clk 0:01:01]}  bxc5 {[%clk 0:00:48]} 45. bxc5 {[%clk 0:01:02]}  Rh1 {[%clk 0:00:48]} 46. d4 {[%clk 0:01:02]}  Rc1+ {[%clk 0:00:48]} 47. Kb4 {[%clk 0:01:03]}  Kb7 {[%clk 0:00:44]} 48. Kb5 {[%clk 0:01:01]}  Rb1+ {[%clk 0:00:43]} 49. Kc4 {[%clk 0:01:02]}  Rd1 {[%clk 0:00:42]} 50. Kd5 {[%clk 0:01:02]}  Kc7 {[%clk 0:00:41]} 51. Rg7+ {[%clk 0:01:03]}  Kc8 {[%clk 0:00:42]} 52. c6 {[%clk 0:01:03]}  Rh1 {[%clk 0:00:41]} 53. Kc5 {[%clk 0:01:03]}  Rh5+ {[%clk 0:00:39]} 54. d5 {[%clk 0:01:03]}  Rh6 {[%clk 0:00:39]} 55. d6 {[%clk 0:01:02]}  Rh5+ {[%clk 0:00:39]} 56. Kb6 {[%clk 0:01:02]} 1-0


[Site "https://www.chess.com"]

[Event "Titled Tuesday Blitz July 20 2021"]
[White "Tanenbaum, Zachary"]
[Black "Oliveira, Silvio Eduardo"]
[WhiteFideId "2060850"]
[BlackFideId "2111560"]
[WhiteElo "2165"]
[BlackElo "2302"]
[Result "1/2-1/2"]
[Round "03"]
[TimeControl "180+1"]
[Date "2021.07.20"]
[WhiteClock "0:00:01"]
[BlackClock "0:00:55"]

1. e4 {[%clk 0:03:00]}  e5 {[%clk 0:02:58]} 2. Nf3 {[%clk 0:02:57]}  Nc6 {[%clk 0:02:59]} 3. Bc4 {[%clk 0:02:57]}  Nf6 {[%clk 0:02:59]} 4. d3 {[%clk 0:02:57]}  Bc5 {[%clk 0:02:58]} 5. c3 {[%clk 0:02:57]}  h6 {[%clk 0:02:58]} 6. Nbd2 {[%clk 0:02:57]}  d6 {[%clk 0:02:59]} 7. a4 {[%clk 0:02:56]}  a5 {[%clk 0:02:59]} 8. Nf1 {[%clk 0:02:54]}  Ng4 {[%clk 0:02:54]} 9. Ne3 {[%clk 0:02:34]}  O-O {[%clk 0:02:54]} 10. O-O {[%clk 0:02:33]}  Nxe3 {[%clk 0:02:45]} 11. Bxe3 {[%clk 0:02:34]}  Bxe3 {[%clk 0:02:45]} 12. fxe3 {[%clk 0:02:35]}  Be6 {[%clk 0:02:38]} 13. Bxe6 {[%clk 0:01:32]}  fxe6 {[%clk 0:02:39]} 14. Qe2 {[%clk 0:01:31]}  Rf6 {[%clk 0:02:33]} 15. Nd2 {[%clk 0:01:30]}  Rxf1+ {[%clk 0:02:26]} 16. Rxf1 {[%clk 0:01:29]}  Qg5 {[%clk 0:02:26]} 17. Qf2 {[%clk 0:01:22]}  Qe7 {[%clk 0:02:10]} 18. Nc4 {[%clk 0:01:22]}  Rf8 {[%clk 0:02:09]} 19. Qxf8+ {[%clk 0:01:21]}  Qxf8 {[%clk 0:02:10]} 20. Rxf8+ {[%clk 0:01:21]}  Kxf8 {[%clk 0:02:10]} 21. d4 {[%clk 0:01:17]}  exd4 {[%clk 0:02:08]} 22. exd4 {[%clk 0:01:17]}  b6 {[%clk 0:02:03]} 23. Kf2 {[%clk 0:01:17]}  Ke7 {[%clk 0:02:01]} 24. Kf3 {[%clk 0:01:15]}  Nd8 {[%clk 0:01:52]} 25. b4 {[%clk 0:01:13]}  Nc6 {[%clk 0:01:47]} 26. d5 {[%clk 0:01:08]}  exd5 {[%clk 0:01:46]} 27. exd5 {[%clk 0:01:08]}  Na7 {[%clk 0:01:35]} 28. bxa5 {[%clk 0:01:07]}  b5 {[%clk 0:01:36]} 29. axb5 {[%clk 0:00:42]}  Nxb5 {[%clk 0:01:37]} 30. a6 {[%clk 0:00:43]}  Kd7 {[%clk 0:01:36]} 31. Na3 {[%clk 0:00:42]}  Na7 {[%clk 0:01:34]} 32. c4 {[%clk 0:00:42]}  c6 {[%clk 0:01:32]} 33. dxc6+ {[%clk 0:00:40]}  Kxc6 {[%clk 0:01:31]} 34. Nb5 {[%clk 0:00:40]}  Nc8 {[%clk 0:01:20]} 35. Ke4 {[%clk 0:00:37]}  Nb6 {[%clk 0:01:15]} 36. a7 {[%clk 0:00:34]}  d5+ {[%clk 0:01:12]} 37. cxd5+ {[%clk 0:00:16]}  Kxb5 {[%clk 0:01:12]} 38. Ke5 {[%clk 0:00:17]}  Ka6 {[%clk 0:01:10]} 39. Ke6 {[%clk 0:00:14]}  Kxa7 {[%clk 0:01:10]} 40. d6 {[%clk 0:00:15]}  Kb7 {[%clk 0:01:10]} 41. Kf7 {[%clk 0:00:09]}  Kc6 {[%clk 0:01:07]} 42. Kxg7 {[%clk 0:00:10]}  h5 {[%clk 0:01:07]} 43. h4 {[%clk 0:00:06]}  Kxd6 {[%clk 0:01:07]} 44. Kg6 {[%clk 0:00:06]}  Nd5 {[%clk 0:01:06]} 45. g3 {[%clk 0:00:06]}  Ke5 {[%clk 0:01:00]} 46. Kxh5 {[%clk 0:00:06]}  Kf6 {[%clk 0:01:01]} 47. Kh6 {[%clk 0:00:02]}  Ne3 {[%clk 0:01:00]} 48. Kh5 {[%clk 0:00:02]}  Kf5 {[%clk 0:00:58]} 49. Kh6 {[%clk 0:00:01]}  Kg4 {[%clk 0:00:57]} 50. h5 {[%clk 0:00:01]}  Kxg3 {[%clk 0:00:55]} 1/2-1/2


[Site "https://www.chess.com"]